Company Name,Sub Group,Service Area,Expense Type,Narrative,Date,Transaction Number,Amount,Supplier Name,Supplier Ref,Period,Year
Allerdale Borough Council,16100,Supplies & Services,Communications and Marketing,Budget-Advertising and Promotions,06/09/2017,211186,55.00,FIRPRESS PRINTERS,A00063,6,2017
Allerdale Borough Council,15405,Supplies & Services,Communications and Marketing,Use of External Printers,06/09/2017,211187,700.00,FIRPRESS PRINTERS,A00063,6,2017
Allerdale Borough Council,15405,Supplies & Services,Communications and Marketing,Use of External Printers,06/09/2017,211188,375.00,FIRPRESS PRINTERS,A00063,6,2017
Allerdale Borough Council,16100,Supplies & Services,Communications and Marketing,Budget-Advertising and Promotions,06/09/2017,211189,700.00,CUMBRIAN NEWSPAPERS LIMITED,A00869,6,2017
Allerdale Borough Council,15403,Supplies & Services,Communications and Marketing,Publications and Periodicals,06/09/2017,211190,99.20,P & D NEWSAGENTS,A00237,6,2017
Allerdale Borough Council,15400,Supplies & Services,Communications and Marketing,"Budget-Printing,Stationery & Office Supp",06/09/2017,211191,21.55,K&R BADGES LIMITED,A01328,6,2017
Allerdale Borough Council,16100,Supplies & Services,Communications and Marketing,Budget-Advertising and Promotions,06/09/2017,211192,150.00,EWANRIGG LOCAL TRUST,M01144,6,2017
Allerdale Borough Council,10601,Employee Costs,Training,External Courses & Seminar Fees,06/09/2017,211193,600.00,SUNDAY PUBLISHING LTD,A02225,6,2017
Allerdale Borough Council,26000,Earmarked Reserves,Comms & Marketing,Budget-Expd funded from Reserve,13/09/2017,211194,1200.00,BIRCHAM DYSON BELL LLP,A02323,6,2017
Allerdale Borough Council,16350,Supplies & Services,Chief Executive,Miscellaneous Expenses,06/09/2017,211195,72.00,FIRPRESS PRINTERS,A00063,6,2017
Allerdale Borough Council,15501,Supplies & Services,Building Control Pay Group,Consultants Fees,06/09/2017,211196,1983.85,SOUTH MILFORD CONSULTING LTD,A02453,6,2017
Allerdale Borough Council,21150,Transfer Payments,Parks & Grounds Maintenance,General Grants,06/09/2017,211197,4999.70,WORKINGTON TOWN COUNCIL,A01615,6,2017
Allerdale Borough Council,16150,Supplies & Services,Maryport Shop Front Improvements,General Promotions,06/09/2017,211198,900.00,Redacted information - included personal information ,M01199,6,2017
Allerdale Borough Council,16150,Supplies & Services,Maryport Shop Front Improvements,General Promotions,06/09/2017,211199,900.00,Redacted information - included personal information ,M01049,6,2017
Allerdale Borough Council,16150,Supplies & Services,Maryport Shop Front Improvements,General Promotions,06/09/2017,211200,580.00,Redacted information - included personal information ,M01049,6,2017
Allerdale Borough Council,16150,Supplies & Services,Maryport Shop Front Improvements,General Promotions,06/09/2017,211201,621.00,Redacted information - included personal information ,M01206,6,2017
Allerdale Borough Council,15812,Supplies & Services,IT Services,Software Development,,211202,866.06,BARCLAYCARD COMMERCIAL ,X00207,6,2017
Allerdale Borough Council,12405,Premises,Homelessness,Rentals and Lease Charges,27/09/2017,211203,196.25,BARCLAYCARD COMMERCIAL,X00207,6,2017
Allerdale Borough Council,15101,Supplies & Services,GP Accommodation Scheme,Equipment Costs,06/09/2017,211206,500.00,Redacted information - included personal information ,M01207,6,2017
Allerdale Borough Council,12101,Premises,Environmental Initiatives,External Maintenance & Decoration,27/09/2017,211207,4222.53,ISS WATERERS LANDSCAPE,C00044,6,2017
Allerdale Borough Council,12101,Premises,Environmental Initiatives,External Maintenance & Decoration,27/09/2017,211208,4410.90,ISS WATERERS LANDSCAPE,C00044,6,2017
Allerdale Borough Council,15501,Supplies & Services,Solway Wetlands Project,Consultants Fees,13/09/2017,211209,450.00,ANDREW LATHWELL DESIGN LTD,A02464,6,2017
Allerdale Borough Council,15501,Supplies & Services,Building Control Pay Group,Consultants Fees,06/09/2017,211210,2650.00,EMA PLANNING LTD,A02429,6,2017
Allerdale Borough Council,12101,Premises,Public Convenience Cleaning,External Maintenance & Decoration,06/09/2017,211211,945.00,Redacted information - included personal information ,C00008,6,2017
Allerdale Borough Council,15401,Supplies & Services,Solway Coast AONB Core Funding,General Stationery,27/09/2017,211212,25.47,VIKING DIRECT,A00828,6,2017
Allerdale Borough Council,15506,Supplies & Services,Sports Development,Professional Services,06/09/2017,211213,100.00,Redacted information - included personal information ,A02468,6,2017
Allerdale Borough Council,15506,Supplies & Services,Sports Development,Professional Services,06/09/2017,211214,125.00,Redacted information - included personal information ,A02468,6,2017
Allerdale Borough Council,10401,Employee Costs,Building Control - Chargeable,Agency Staff Costs,06/09/2017,211215,2500.00,JAMES ANDREW RECRUITMENT SOLUTIONS LTD,A02339,6,2017
Allerdale Borough Council,15503,Supplies & Services,Revenue,Court and Tribunal Costs,06/09/2017,211216,1437.00,HMCTS - WEST CUMBRIA COURT HOUSE,A00275,6,2017
Allerdale Borough Council,15501,Supplies & Services,Planning and Development,Consultants Fees,20/09/2017,211217,1750.00,WYG ENGINEERING LTD,A00155,6,2017
Allerdale Borough Council,12305,Premises,Corporate Property Maintenance,Inspections and Services,20/09/2017,211218,6.42,PHS GROUP LTD,C00028,6,2017
Allerdale Borough Council,15501,Supplies & Services,Estates,Consultants Fees,06/09/2017,211219,1180.00,STEVEN SLOCOMBE LTD,A02433,6,2017
Allerdale Borough Council,16150,Supplies & Services,"The Hub, Workington Town Centre",General Promotions,06/09/2017,211220,200.00,Redacted information - included personal information ,A01408,6,2017
Allerdale Borough Council,16101,Supplies & Services,Planning and Development,Statutory Notices,06/09/2017,211221,430.54,CUMBRIAN NEWSPAPERS LIMITED,A00869,6,2017
Allerdale Borough Council,16101,Supplies & Services,Planning and Development,Statutory Notices,06/09/2017,211222,327.22,CUMBRIAN NEWSPAPERS LIMITED,A00869,6,2017
Allerdale Borough Council,12405,Premises,Homelessness,Rentals and Lease Charges,06/09/2017,211223,1206.80,HOME GROUP LTD,A00423,6,2017
Allerdale Borough Council,12405,Premises,Homelessness,Rentals and Lease Charges,06/09/2017,211224,1206.80,HOME GROUP LTD,A00423,6,2017
Allerdale Borough Council,12305,Premises,Estates,Inspections and Services,06/09/2017,211225,750.00,WALTON GOODLAND LTD,A01226,6,2017
Allerdale Borough Council,10601,Employee Costs,Community Housing Fund,External Courses & Seminar Fees,13/09/2017,211226,215.00,CHARTERED INSTITUTE OF HOUSING,A01952,6,2017
Allerdale Borough Council,15506,Supplies & Services,Housing Strategic Function,Professional Services,06/09/2017,211227,250.00,WALTON GOODLAND LTD,A01226,6,2017
Allerdale Borough Council,10401,Employee Costs,Land Charges Service,Agency Staff Costs,06/09/2017,211228,510.60,ADECCO RECRUITMENT,A00188,6,2017
Allerdale Borough Council,10401,Employee Costs,Land Charges Service,Agency Staff Costs,06/09/2017,211229,510.60,ADECCO RECRUITMENT,A00188,6,2017
Allerdale Borough Council,15501,Supplies & Services,Corporate Transformation,Consultants Fees,06/09/2017,211230,3087.50,Redacted information - included personal information ,A02434,6,2017
Allerdale Borough Council,12403,Premises,Corporate Property Maintenance,Gas,06/09/2017,211231,85.69,CORONA ENERGY,X00003,6,2017
Allerdale Borough Council,12403,Premises,Corporate Property Maintenance,Gas,06/09/2017,211232,123.02,CORONA ENERGY,X00003,6,2017
Allerdale Borough Council,12403,Premises,Corporate Property Maintenance,Gas,06/09/2017,211233,103.26,CORONA ENERGY,X00003,6,2017
Allerdale Borough Council,12403,Premises,Corporate Property Maintenance,Gas,06/09/2017,211234,140.80,CORONA ENERGY,X00003,6,2017
Allerdale Borough Council,12403,Premises,Corporate Property Maintenance,Gas,06/09/2017,211235,86.26,CORONA ENERGY,X00003,6,2017
Allerdale Borough Council,12403,Premises,Corporate Property Maintenance,Gas,06/09/2017,211236,22.24,CORONA ENERGY,X00003,6,2017
Allerdale Borough Council,12403,Premises,Corporate Property Maintenance,Gas,06/09/2017,211237,51.55,CORONA ENERGY,X00003,6,2017
Allerdale Borough Council,10401,Employee Costs,Governance Support Assistants,Agency Staff Costs,06/09/2017,211238,510.60,ADECCO RECRUITMENT,A00188,6,2017
Allerdale Borough Council,15904,Supplies & Services,Members Services,Training,27/09/2017,211239,1000.00,IMPROVEMENT & DEVELOPMENT AGENCY,A00484,6,2017
Allerdale Borough Council,15506,Supplies & Services,Environmental Initiatives,Professional Services,06/09/2017,211240,250.00,FIELDS IN TRUST,A02472,6,2017
Allerdale Borough Council,20306,Third Party Payments,Maryport Wave,Contract Services-The Wave,06/09/2017,211241,10833.33,GREENWICH LEISURE LTD (PREV CARLISLE LEISURE),A00136,6,2017
Allerdale Borough Council,20305,Third Party Payments,Sports & Leisure Centres,Contract Services-Leisure Centres,06/09/2017,211242,47747.58,GREENWICH LEISURE LTD (PREV CARLISLE LEISURE),A00136,6,2017
Allerdale Borough Council,20305,Third Party Payments,Maryport Wave,Contract Services-Leisure Centres,06/09/2017,211243,8661.92,GREENWICH LEISURE LTD (PREV CARLISLE LEISURE),A00136,6,2017
Allerdale Borough Council,10401,Employee Costs,Governance Support Assistants,Agency Staff Costs,06/09/2017,211244,310.50,ADECCO RECRUITMENT,A00188,6,2017
Allerdale Borough Council,10401,Employee Costs,Finance and Accounting Pay Group,Agency Staff Costs,20/09/2017,211245,198.50,HAYS SPECIALIST RECRUITMENT LTD,A00280,6,2017
Allerdale Borough Council,15500,Supplies & Services,Confidential Waste,Budget-Services,06/09/2017,211246,376.00,J DUFFY LTD T/A PW CONF BUS SERVICES,A01846,6,2017
Allerdale Borough Council,16150,Supplies & Services,Legal Services,General Promotions,06/09/2017,211247,373.97,CN EVENTS MANAGEMENT,A01099,6,2017
Allerdale Borough Council,15404,Supplies & Services,Legal Services,Reference Materials,20/09/2017,211248,337.00,SWEET & MAXWELL (THOMSON REUTERS),A00028,6,2017
Allerdale Borough Council,14104,Transport,Parking Services Pay Group,Repairs & Maintenance,27/09/2017,211249,629.79,METRIC GROUP LTD,A00568,6,2017
Allerdale Borough Council,16101,Supplies & Services,Planning and Development,Statutory Notices,06/09/2017,211250,327.22,CUMBRIAN NEWSPAPERS LIMITED,A00869,6,2017
Allerdale Borough Council,16101,Supplies & Services,Planning and Development,Statutory Notices,06/09/2017,211251,348.53,CUMBRIAN NEWSPAPERS LIMITED,A00869,6,2017
Allerdale Borough Council,15405,Supplies & Services,Recycling,Use of External Printers,06/09/2017,211252,406.00,FIRPRESS PRINTERS,A00063,6,2017
Allerdale Borough Council,10601,Employee Costs,Training,External Courses & Seminar Fees,06/09/2017,211253,600.00,SHELTER TRAINING,A00593,6,2017
Allerdale Borough Council,15405,Supplies & Services,Off-street - Owned,Use of External Printers,13/09/2017,211254,3440.00,NAGELS UK LTD,A01182,6,2017
Allerdale Borough Council,12301,Premises,Corporate Property Maintenance,Security,,211255,-36.37,ADT FIRE & SECURITY PLC,C00035,6,2017
Allerdale Borough Council,12301,Premises,Corporate Property Maintenance,Security,,211256,-36.37,ADT FIRE & SECURITY PLC,C00035,6,2017
Allerdale Borough Council,15704,Supplies & Services,IT Services,Mobile Phones,06/09/2017,211257,462.20,VODAFONE,A00551,6,2017
Allerdale Borough Council,15501,Supplies & Services,Estates,Consultants Fees,06/09/2017,211258,3000.00,JAMES ANDREW RECRUITMENT SOLUTIONS LTD,A02339,6,2017
Allerdale Borough Council,15550,Supplies & Services,Licensing Service,General-Service Related Fees,06/09/2017,211259,24.00,ORBIS PROTECT LTD (PREV SITEXORBIS LIMITED),A00679,6,2017
Allerdale Borough Council,10401,Employee Costs,Land Charges Service,Agency Staff Costs,06/09/2017,211260,414.00,ADECCO RECRUITMENT,A00188,6,2017
Allerdale Borough Council,10401,Employee Costs,Land Charges Service,Agency Staff Costs,06/09/2017,211261,510.60,ADECCO RECRUITMENT,A00188,6,2017
Allerdale Borough Council,72104,Holding and Control Accounts,Debtor Control Account,Debtors (Control Account),06/09/2017,211262,417.50,HBN RESTAURANTS LTD,M01208,6,2017
Allerdale Borough Council,54105,Capital Expenditure,Disabled Facilities Grants,Grants  Private Individuals (Capital),06/09/2017,211264,4952.18,SAS BUILDERS (CUMBRIA) LTD,X00257,6,2017
Allerdale Borough Council,54105,Capital Expenditure,Disabled Facilities Grants,Grants  Private Individuals (Capital),06/09/2017,211265,2484.00,PARTNERSHIP IN PROPERTY MANAGEMENT LTD,X00120,6,2017
Allerdale Borough Council,54105,Capital Expenditure,Disabled Facilities Grants,Grants  Private Individuals (Capital),06/09/2017,211266,1711.70,PARTNERSHIP IN PROPERTY MANAGEMENT LTD,X00120,6,2017
Allerdale Borough Council,54105,Capital Expenditure,Disabled Facilities Grants,Grants  Private Individuals (Capital),06/09/2017,211267,7867.00,GMB DEVELOPMENTS LTD,C00094,6,2017
Allerdale Borough Council,54105,Capital Expenditure,Disabled Facilities Grants,Grants  Private Individuals (Capital),06/09/2017,211268,460.00,BLUE FLAME SERVICES LTD,X00213,6,2017
Allerdale Borough Council,54105,Capital Expenditure,Disabled Facilities Grants,Grants  Private Individuals (Capital),06/09/2017,211269,2990.00,BLUE FLAME SERVICES LTD,X00213,6,2017
Allerdale Borough Council,54105,Capital Expenditure,Disabled Facilities Grants,Grants  Private Individuals (Capital),06/09/2017,211270,2609.00,PARTNERSHIP IN PROPERTY MANAGEMENT LTD,X00120,6,2017
Allerdale Borough Council,15506,Supplies & Services,Assistance - Housing Services,Professional Services,06/09/2017,211271,650.00,CONISTON CONSULTANTS LTD,X00210,6,2017
Allerdale Borough Council,16350,Supplies & Services,Homelessness,Miscellaneous Expenses,06/09/2017,211272,350.00,ID PROPERTIES,M00259,6,2017
Allerdale Borough Council,15501,Supplies & Services,Building Control Pay Group,Consultants Fees,06/09/2017,211273,1872.00,SOUTH MILFORD CONSULTING LTD,A02453,6,2017
Allerdale Borough Council,15506,Supplies & Services,Food and Occupational Health,Professional Services,06/09/2017,211274,235.00,MPM NORTH WEST LIMITED,A00113,6,2017
Allerdale Borough Council,10401,Employee Costs,Housing & Health Pay Group,Agency Staff Costs,20/09/2017,211275,302.50,HAYS SPECIALIST RECRUITMENT LTD,A00280,6,2017
Allerdale Borough Council,12405,Premises,Homelessness,Rentals and Lease Charges,,211276,65.84,BARCLAYCARD COMMERCIAL,X00207,6,2017
Allerdale Borough Council,16003,Supplies & Services,Off-street - Owned,Security of Cash Movements,06/09/2017,211277,671.93,G4S CASH SOLUTIONS (UK) LTD,A02421,6,2017
Allerdale Borough Council,14101,Transport,Homelessness,Vehicle Leasing,06/09/2017,211278,171.74,DOBIES VAUXHALL,A00254,6,2017
Allerdale Borough Council,15101,Supplies & Services,Public Convenience Cleaning,Equipment Costs,06/09/2017,211279,443.60,INSTOCK (CHANDLERS),A00050,6,2017
Allerdale Borough Council,12305,Premises,Corporate Property Maintenance,Inspections and Services,20/09/2017,211280,4.28,PHS GROUP LTD,C00028,6,2017
Allerdale Borough Council,12305,Premises,Public Convenience Cleaning,Inspections and Services,20/09/2017,211281,41.73,PHS GROUP LTD,C00028,6,2017
Allerdale Borough Council,12408,Premises,Corporate Property Maintenance,Water & Sewage,06/09/2017,211282,28.51,UNITED UTILITIES,X00011,6,2017
Allerdale Borough Council,15812,Supplies & Services,IT Services,Software Development,,211283,1052.07,BARCLAYCARD COMMERCIAL,X00207,6,2017
Allerdale Borough Council,12101,Premises,Car Parks Inspection & Maintenance,External Maintenance & Decoration,13/09/2017,211284,175.00,KEVIN DICKINSON UPVC LTD,X00131,6,2017
Allerdale Borough Council,12309,Premises,Corporate Property Maintenance,Fire and Safety,13/09/2017,211285,60.00,PROTEC SYSTEMS,C00026,6,2017
Allerdale Borough Council,15101,Supplies & Services,Corporate Property Maintenance,Equipment Costs,06/09/2017,211286,165.92,BOOKER CASH & CARRY ,A01419,6,2017
Allerdale Borough Council,12101,Premises,Public Convenience Cleaning,External Maintenance & Decoration,13/09/2017,211287,644.00,Redacted information - included personal information ,C00008,6,2017
Allerdale Borough Council,12101,Premises,Footways,External Maintenance & Decoration,,211288,112.50,ISS WATERERS LANDSCAPE,C00044,6,2017
Allerdale Borough Council,10110,Employee Costs,Busy Bees Childcare Scheme,Salary Sacrifice,13/09/2017,211289,1422.00,COMPUTERSHARE VOUCHER SERVICES,A00991,6,2017
Allerdale Borough Council,10110,Employee Costs,Busy Bees Childcare Scheme,Salary Sacrifice,13/09/2017,211290,78.21,COMPUTERSHARE VOUCHER SERVICES,A00991,6,2017
Allerdale Borough Council,15403,Supplies & Services,Chief Executive,Publications and Periodicals,13/09/2017,211291,224.10,EMAP COMMUNICATIONS,A00281,6,2017
Allerdale Borough Council,15501,Supplies & Services,Planning Policy,Consultants Fees,13/09/2017,211292,2812.50,G2 RECRUITMENT SOLUTIONS LTD,C00198,6,2017
Allerdale Borough Council,33112,Income,Planning and Development,Planning Fees Income,13/09/2017,211293,1540.00,Redacted information - included personal information ,M01209,6,2017
Allerdale Borough Council,15201,Supplies & Services,Chief Executive,Entertainment Of Visitors,,211294,515.11,BARCLAYCARD COMMERCIAL ,X00207,6,2017
Allerdale Borough Council,15203,Supplies & Services,Members Services,Catering Costs and Consumables,13/09/2017,211295,79.20,AL'S KITCHEN LTD,A00187,6,2017
Allerdale Borough Council,12307,Premises,Corporate Property Maintenance,Fixtures and Fittings,27/09/2017,211296,700.00,SHERIDAN LIFTS LIMITED,C00120,6,2017
Allerdale Borough Council,12101,Premises,Harrington Harbour,External Maintenance & Decoration,13/09/2017,211297,180.00,W G MACKAY LTD,A01711,6,2017
Allerdale Borough Council,12301,Premises,Corporate Property Maintenance,Security,13/09/2017,211298,280.75,G4S SECURE SOLUTIONS,A01597,6,2017
Allerdale Borough Council,15401,Supplies & Services,Corporate Postage and Stationary,General Stationery,27/09/2017,211299,129.11,LYRECO,A00043,6,2017
Allerdale Borough Council,15100,Supplies & Services,Communications and Marketing,"Budget-Equipment, Furniture & Materials",13/09/2017,211300,816.67,GALA TENT LIMTED,A02463,6,2017
Allerdale Borough Council,12309,Premises,Corporate Property Maintenance,Fire and Safety,13/09/2017,211301,86.00,CUMBRIAN SYSTEMS (WESTMORLAND SECURITY),C00062,6,2017
Allerdale Borough Council,15810,Supplies & Services,IT Services,Software Licences,27/09/2017,211302,212.60,FARONICS EMEA LTD,A02253,6,2017
Allerdale Borough Council,15501,Supplies & Services,Building Control Pay Group,Consultants Fees,13/09/2017,211303,1737.50,BRG INTERIM SOLUTIONS LTD,A02458,6,2017
Allerdale Borough Council,15501,Supplies & Services,Building Control Pay Group,Consultants Fees,13/09/2017,211304,1887.50,BRG INTERIM SOLUTIONS LTD,A02458,6,2017
Allerdale Borough Council,15501,Supplies & Services,Building Control Pay Group,Consultants Fees,13/09/2017,211305,1854.00,BRG INTERIM SOLUTIONS LTD,A02458,6,2017
Allerdale Borough Council,15501,Supplies & Services,Building Control Pay Group,Consultants Fees,13/09/2017,211306,2200.00,BRG INTERIM SOLUTIONS LTD,A02458,6,2017
Allerdale Borough Council,16150,Supplies & Services,Town Centre Management,General Promotions,13/09/2017,211307,330.00,POD (NORTH WEST) LIMITED,A01977,6,2017
Allerdale Borough Council,15501,Supplies & Services,Building Control - Chargeable,Consultants Fees,13/09/2017,211308,46.00,PK ELECTRICAL (CARLISLE) LTD,A00778,6,2017
Allerdale Borough Council,16150,Supplies & Services,Solway AONB Other Projects,General Promotions,13/09/2017,211309,189.00,Redacted information - included personal information ,C00199,6,2017
Allerdale Borough Council,14104,Transport,Public Convenience Cleaning,Repairs & Maintenance,13/09/2017,211310,98.32,GOODFELLOW & SONS,A00031,6,2017
Allerdale Borough Council,14150,Transport,Gates Travel,General-Council Vehicles (Non-Capital),27/09/2017,211311,1429.98,GATES TRAVEL,A01525,6,2017
Allerdale Borough Council,15812,Supplies & Services,IT Services,Software Development,27/09/2017,211312,3400.00,ASTUN TECHNOLOGY LIMITED,A01234,6,2017
Allerdale Borough Council,15600,Supplies & Services,Corporate Postage and Stationary,Budget-Postal Services,13/09/2017,211313,5000.00,FP TELESET,A00428,6,2017
Allerdale Borough Council,15501,Supplies & Services,Estates,Consultants Fees,13/09/2017,211314,1470.00,STEVEN SLOCOMBE LTD,A02433,6,2017
Allerdale Borough Council,15100,Supplies & Services,Communications and Marketing,"Budget-Equipment, Furniture & Materials",13/09/2017,211315,326.25,WE ARE PROMOTIONAL PRODUCTS LTD,A02477,6,2017
Allerdale Borough Council,15813,Supplies & Services,Commissioning Support Pay Group,Software Miscellaneous,13/09/2017,211316,750.00,TRAFFORD COUNCIL (SPENDPRO),A01812,6,2017
Allerdale Borough Council,10601,Employee Costs,Training,External Courses & Seminar Fees,13/09/2017,211317,180.00,BPP LEARNING MEDIA,M01210,6,2017
Allerdale Borough Council,16350,Supplies & Services,Off-street - Owned,Miscellaneous Expenses,27/09/2017,211318,744.40,3C PAYMENT LIMITED,A02382,6,2017
Allerdale Borough Council,16001,Supplies & Services,Banking and Interest,Bank Charges and Fees,13/09/2017,211319,15.44,ALLPAY.NET LIMITED,A00714,6,2017
Allerdale Borough Council,16001,Supplies & Services,Banking and Interest,Bank Charges and Fees,13/09/2017,211320,27.64,ALLPAY.NET LIMITED,A00714,6,2017
Allerdale Borough Council,16001,Supplies & Services,Banking and Interest,Bank Charges and Fees,13/09/2017,211321,16.11,ALLPAY.NET LIMITED,A00714,6,2017
Allerdale Borough Council,16001,Supplies & Services,Banking and Interest,Bank Charges and Fees,13/09/2017,211322,15.44,ALLPAY.NET LIMITED,A00714,6,2017
Allerdale Borough Council,16001,Supplies & Services,Banking and Interest,Bank Charges and Fees,13/09/2017,211323,21.71,ALLPAY.NET LIMITED,A00714,6,2017
Allerdale Borough Council,16001,Supplies & Services,Banking and Interest,Bank Charges and Fees,13/09/2017,211324,18.93,ALLPAY.NET LIMITED,A00714,6,2017
Allerdale Borough Council,16001,Supplies & Services,Banking and Interest,Bank Charges and Fees,13/09/2017,211325,21.17,ALLPAY.NET LIMITED,A00714,6,2017
Allerdale Borough Council,16001,Supplies & Services,Banking and Interest,Bank Charges and Fees,13/09/2017,211326,75.12,ALLPAY.NET LIMITED,A00714,6,2017
Allerdale Borough Council,16001,Supplies & Services,Banking and Interest,Bank Charges and Fees,13/09/2017,211327,1587.31,ALLPAY.NET LIMITED,A00714,6,2017
Allerdale Borough Council,16001,Supplies & Services,Banking and Interest,Bank Charges and Fees,13/09/2017,211328,43.77,ALLPAY.NET LIMITED,A00714,6,2017
Allerdale Borough Council,12307,Premises,Corporate Property Maintenance,Fixtures and Fittings,27/09/2017,211329,136.65,THYSSENKRUPP ELEVATOR UK LTD,C00072,6,2017
Allerdale Borough Council,15502,Supplies & Services,Legal Services,Land Registry Fees,27/09/2017,211330,349.00,HM LAND REGISTRY,A00505,6,2017
Allerdale Borough Council,15502,Supplies & Services,Legal Services,Land Registry Fees,27/09/2017,211331,12.00,HM LAND REGISTRY,A00505,6,2017
Allerdale Borough Council,15502,Supplies & Services,Housing & Health Pay Group,Land Registry Fees,05/09/2017,211332,30.00,HM LAND REGISTRY,A00505,6,2017
Allerdale Borough Council,12101,Premises,Corporate Property Maintenance,External Maintenance & Decoration,13/09/2017,211333,108.00,MOORCLOSE COMMUNITY CENTRE LTD,A00709,6,2017
Allerdale Borough Council,21150,Transfer Payments,Festivals & Events,General Grants,13/09/2017,211334,84.00,SOUNDWAVE,A00998,6,2017
Allerdale Borough Council,16100,Supplies & Services,Communications and Marketing,Budget-Advertising and Promotions,13/09/2017,211335,287.94,NEWSQUEST MEDIA GROUP,A02348,6,2017
Allerdale Borough Council,20110,Third Party Payments,Trade Waste,Other Local Authorities,13/09/2017,211336,92031.75,CUMBRIA CC,A00066,6,2017
Allerdale Borough Council,15400,Supplies & Services,Communications and Marketing,"Budget-Printing,Stationery & Office Supp",13/09/2017,211337,7.95,K&R BADGES LIMITED,A01328,6,2017
Allerdale Borough Council,15400,Supplies & Services,Communications and Marketing,"Budget-Printing,Stationery & Office Supp",13/09/2017,211338,19.85,K&R BADGES LIMITED,A01328,6,2017
Allerdale Borough Council,12402,Premises,Multi Storey Car Park Utilities & Maint,Electricity,20/09/2017,211339,947.05,N POWER ,X00015,6,2017
Allerdale Borough Council,15702,Supplies & Services,Off-street - Owned,Line Rentals,13/09/2017,211340,832.53,COBALT TELEPHONE TECHNOLOGY,A01008,6,2017
Allerdale Borough Council,20110,Third Party Payments,Trade Waste,Other Local Authorities,13/09/2017,211341,-20000.00,CUMBRIA CC,A00066,6,2017
Allerdale Borough Council,12402,Premises,Multi Storey Car Park Utilities & Maint,Electricity,20/09/2017,211342,-947.05,N POWER,X00015,6,2017
Allerdale Borough Council,20110,Third Party Payments,Trade Waste,Other Local Authorities,13/09/2017,211343,-20326.50,CUMBRIA CC ,A00066,6,2017
Allerdale Borough Council,10110,Employee Costs,Community Services Pay Group,Salary Sacrifice,13/09/2017,211344,2730.41,TUSKERDIRECT LTD,A02186,6,2017
Allerdale Borough Council,12408,Premises,Public Convenience Cleaning,Water & Sewage,13/09/2017,211345,139.37,UNITED UTILITIES ,X00011,6,2017
Allerdale Borough Council,12408,Premises,Public Convenience Cleaning,Water & Sewage,13/09/2017,211346,241.63,UNITED UTILITIES ,X00011,6,2017
Allerdale Borough Council,10501,Employee Costs,Human Resources Pay Group,Advertising Vacancies,13/09/2017,211347,750.00,CHART INST OF ENVIRO HEALTH,A00035,6,2017
Allerdale Borough Council,15501,Supplies & Services,Human Resources Pay Group,Consultants Fees,27/09/2017,211348,5839.60,Redacted information - included personal information ,A02373,6,2017
Allerdale Borough Council,12101,Premises,Corporate Property Maintenance,External Maintenance & Decoration,,211349,237.50,ISS WATERERS LANDSCAPE,C00044,6,2017
Allerdale Borough Council,12101,Premises,Corporate Property Maintenance,External Maintenance & Decoration,13/09/2017,211350,12380.00,THOMAS ARMSTRONG - CONSTRUCT,C00003,6,2017
Allerdale Borough Council,20101,Third Party Payments,Recycling,Cleansing Contract,13/09/2017,211351,27885.48,CUMBRIA WASTE MANAGEMENT LTD,A01304,6,2017
Allerdale Borough Council,20101,Third Party Payments,Recycling,Cleansing Contract,13/09/2017,211352,25671.49,CUMBRIA WASTE MANAGEMENT LTD,A01304,6,2017
Allerdale Borough Council,10401,Employee Costs,Housing & Health Pay Group,Agency Staff Costs,27/09/2017,211353,193.60,HAYS SPECIALIST RECRUITMENT LTD,A00280,6,2017
Allerdale Borough Council,15506,Supplies & Services,Estates,Professional Services,13/09/2017,211354,262.82,WALTON GOODLAND LTD,A01226,6,2017
Allerdale Borough Council,14100,Transport,Parking Services Pay Group,Budget-Council Vehicles (Non-capital),13/09/2017,211355,192.67,FCC ENVIRONMENT SERVICES (FOCSA),A00085,6,2017
Allerdale Borough Council,15101,Supplies & Services,Trade Waste,Equipment Costs,27/09/2017,211356,4706.40,STORM ENVIRONMENTAL LIMITED,A02444,6,2017
Allerdale Borough Council,15101,Supplies & Services,Trade Waste,Equipment Costs,27/09/2017,211357,4706.40,STORM ENVIRONMENTAL LIMITED,A02444,6,2017
Allerdale Borough Council,15101,Supplies & Services,Animal Welfare,Equipment Costs,27/09/2017,211358,780.00,BROXAP LIMITED,C00048,6,2017
Allerdale Borough Council,12101,Premises,Corporate Property Maintenance,External Maintenance & Decoration,13/09/2017,211359,1575.00,KEVIN DICKINSON UPVC LTD,X00131,6,2017
Allerdale Borough Council,21150,Transfer Payments,Carnegie Trust Contribution,General Grants,13/09/2017,211360,10000.00,CARNEGIE THEATRE TRUST,R00015,6,2017
Allerdale Borough Council,12303,Premises,Corporate Property Maintenance,Window Cleaning,13/09/2017,211361,405.00,BORDERBRITE LTD,C00155,6,2017
Allerdale Borough Council,12101,Premises,Footways,External Maintenance & Decoration,13/09/2017,211362,348.00,Redacted information - included personal information ,A00176,6,2017
Allerdale Borough Council,15102,Supplies & Services,Recycling,Equipment Repair & Maintenance,13/09/2017,211363,375.20,Redacted information - included personal information ,A00176,6,2017
Allerdale Borough Council,12101,Premises,Multi Storey Car Park Utilities & Maint,External Maintenance & Decoration,13/09/2017,211364,72.00,Redacted information - included personal information ,C00008,6,2017
Allerdale Borough Council,12402,Premises,Footways,Electricity,13/09/2017,211365,771.08,SLS (CUMBRIA) LIMITED,A02474,6,2017
Allerdale Borough Council,15500,Supplies & Services,Confidential Waste,Budget-Services,13/09/2017,211366,35.00,J DUFFY LTD T/A PW CONF BUS SERVICES,A01846,6,2017
Allerdale Borough Council,10401,Employee Costs,Governance Support Assistants,Agency Staff Costs,13/09/2017,211367,393.30,ADECCO RECRUITMENT,A00188,6,2017
Allerdale Borough Council,20150,Third Party Payments,Footways,General Partnership Service Fees,04/10/2017,211368,624.00,ELECTRICITY NORTH WEST LTD,A00471,6,2017
Allerdale Borough Council,12301,Premises,Corporate Property Maintenance,Security,13/09/2017,211369,60.00,PROTEC SYSTEMS,C00026,6,2017
Allerdale Borough Council,12305,Premises,Corporate Property Maintenance,Inspections and Services,13/09/2017,211370,98.00,AQUAID (NORTH),A00123,6,2017
Allerdale Borough Council,12305,Premises,Corporate Property Maintenance,Inspections and Services,13/09/2017,211371,49.00,AQUAID (NORTH),A00123,6,2017
Allerdale Borough Council,12305,Premises,Corporate Property Maintenance,Inspections and Services,13/09/2017,211372,392.00,AQUAID (NORTH),A00123,6,2017
Allerdale Borough Council,15101,Supplies & Services,Homelessness,Equipment Costs,20/09/2017,211373,80.50,THE LAUNDRY STUDIO,A00225,6,2017
Allerdale Borough Council,12402,Premises,Homelessness,Electricity,13/09/2017,211374,35.88,N POWER,X00262,6,2017
Allerdale Borough Council,35106,Income,Homelessness,Dwellings Income,13/09/2017,211375,72.66,ALLERDALE ,A00342,6,2017
Allerdale Borough Council,15702,Supplies & Services,Off-street - Owned,Line Rentals,27/09/2017,211376,952.85,COBALT TELEPHONE TECHNOLOGY,A01008,6,2017
Allerdale Borough Council,15501,Supplies & Services,Revenue,Consultants Fees,27/09/2017,211377,310.00,JACOBS (BAILIFFS),A00495,6,2017
Allerdale Borough Council,15101,Supplies & Services,MSCP equipment,Equipment Costs,13/09/2017,211378,5812.70,SOLWAY INDUSTRIAL DOORS LTD,C00015,6,2017
Allerdale Borough Council,15100,Supplies & Services,MSCP equipment,"Budget-Equipment, Furniture & Materials",20/09/2017,211379,480.00,3C PAYMENT LIMITED,A02382,6,2017
Allerdale Borough Council,15102,Supplies & Services,Parking Services Pay Group,Equipment Repair & Maintenance,13/09/2017,211380,106.35,RELIANCE HIGH-TECH LTD,C00123,6,2017
Allerdale Borough Council,15603,Supplies & Services,Document Management Pay Group,Franking Machine Costs,27/09/2017,211381,300.00,THE MAILING ROOM (TMR EXECUTIVE AGENCY LTD),A00733,6,2017
Allerdale Borough Council,20300,Third Party Payments,Parks and Grounds Maintenance,Budget-Contract Services,,211382,112.84,ISS WATERERS LANDSCAPE,C00044,6,2017
Allerdale Borough Council,15550,Supplies & Services,Licensing Service,General-Service Related Fees,20/09/2017,211383,24.00,ORBIS PROTECT LTD (PREV SITEXORBIS LIMITED),A00679,6,2017
Allerdale Borough Council,15103,Supplies & Services,Arts Development,Purchase of Materials,27/09/2017,211384,267.16,ISS WATERERS LANDSCAPE,C00044,6,2017
Allerdale Borough Council,10401,Employee Costs,Land Charges Service,Agency Staff Costs,13/09/2017,211385,407.10,ADECCO RECRUITMENT,A00188,6,2017
Allerdale Borough Council,54105,Capital Expenditure,Disabled Facilities Grants,Grants  Private Individuals (Capital),13/09/2017,211386,3175.00,PARTNERSHIP IN PROPERTY MANAGEMENT LTD,X00120,6,2017
Allerdale Borough Council,54105,Capital Expenditure,Disabled Facilities Grants,Grants  Private Individuals (Capital),13/09/2017,211387,3412.10,K BAILIFF & SON LIMITED,X00116,6,2017
Allerdale Borough Council,54105,Capital Expenditure,Discretionary Grants,Grants  Private Individuals (Capital),13/09/2017,211388,3250.00,DOLPHIN STAIRLIFTS CUMBRIA,X00107,6,2017
Allerdale Borough Council,54105,Capital Expenditure,Discretionary Grants,Grants  Private Individuals (Capital),13/09/2017,211389,3300.00,Redacted information - included personal information ,X00263,6,2017
Allerdale Borough Council,14100,Transport,Domestic Waste,Budget-Council Vehicles (Non-capital),13/09/2017,211390,1179.20,VOLKSWAGEN GROUP LEASING,A01239,6,2017
Allerdale Borough Council,15101,Supplies & Services,Recycling,Equipment Costs,13/09/2017,211391,9890.60,RPC BPI REFUSE,A00318,6,2017
Allerdale Borough Council,15701,Supplies & Services,MSCP equipment,Installation Costs,13/09/2017,211392,905.05,COMPASS SERVICES GROUP,A00839,6,2017
Allerdale Borough Council,15101,Supplies & Services,Public Convenience Cleaning,Equipment Costs,13/09/2017,211393,48.82,STEVES PAINT LTD,A00119,6,2017
Allerdale Borough Council,15101,Supplies & Services,Public Convenience Cleaning,Equipment Costs,13/09/2017,211394,43.90,STEVES PAINT LTD,A00119,6,2017
Allerdale Borough Council,12101,Premises,Car Parks Inspection & Maintenance,External Maintenance & Decoration,13/09/2017,211395,624.00,Redacted information - included personal information ,C00008,6,2017
Allerdale Borough Council,15702,Supplies & Services,Parking Services Pay Group,Line Rentals,13/09/2017,211396,136.91,BRITISH TELECOMMUNICATIONS,X00004,6,2017
Allerdale Borough Council,15702,Supplies & Services,Parking Services Pay Group,Line Rentals,13/09/2017,211397,136.91,BRITISH TELECOMMUNICATIONS,X00004,6,2017
Allerdale Borough Council,15702,Supplies & Services,Parking Services Pay Group,Line Rentals,13/09/2017,211398,96.91,BRITISH TELECOMMUNICATIONS,X00004,6,2017
Allerdale Borough Council,15702,Supplies & Services,Parking Services Pay Group,Line Rentals,13/09/2017,211399,-40.28,BRITISH TELECOMMUNICATIONS,X00004,6,2017
Allerdale Borough Council,15601,Supplies & Services,Environmental Services Pay Group,Postage,13/09/2017,211400,200.00,ROYAL MAIL LETTERS,X00021,6,2017
Allerdale Borough Council,12408,Premises,Corporate Property Maintenance,Water & Sewage,13/09/2017,211401,98.04,UNITED UTILITIES,X00011,6,2017
Allerdale Borough Council,12408,Premises,Corporate Property Maintenance,Water & Sewage,13/09/2017,211402,17.27,UNITED UTILITIES,X00011,6,2017
Allerdale Borough Council,12408,Premises,Public Convenience Cleaning,Water & Sewage,13/09/2017,211403,9.28,UNITED UTILITIES,X00011,6,2017
Allerdale Borough Council,12408,Premises,Public Convenience Cleaning,Water & Sewage,13/09/2017,211404,68.26,UNITED UTILITIES,X00011,6,2017
Allerdale Borough Council,12408,Premises,Public Convenience Cleaning,Water & Sewage,13/09/2017,211405,52.38,UNITED UTILITIES,X00011,6,2017
Allerdale Borough Council,12408,Premises,Corporate Property Maintenance,Water & Sewage,13/09/2017,211406,53.54,UNITED UTILITIES,X00011,6,2017
Allerdale Borough Council,12408,Premises,Public Convenience Cleaning,Water & Sewage,13/09/2017,211407,57.93,UNITED UTILITIES,X00011,6,2017
Allerdale Borough Council,12402,Premises,Corporate Property Maintenance,Electricity,13/09/2017,211408,6.02,BRITISH GAS,X00039,6,2017
Allerdale Borough Council,12408,Premises,Corporate Property Maintenance,Water & Sewage,13/09/2017,211409,10.68,UNITED UTILITIES ,X00011,6,2017
Allerdale Borough Council,12408,Premises,Public Convenience Cleaning,Water & Sewage,13/09/2017,211410,71.46,UNITED UTILITIES ,X00011,6,2017
Allerdale Borough Council,12408,Premises,Corporate Property Maintenance,Water & Sewage,13/09/2017,211411,41.24,UNITED UTILITIES ,X00011,6,2017
Allerdale Borough Council,15101,Supplies & Services,Solway Wetlands Project,Equipment Costs,,211412,45.40,BARCLAYCARD COMMERCIAL,X00207,6,2017
Allerdale Borough Council,15501,Supplies & Services,Building Control Pay Group,Consultants Fees,20/09/2017,211413,2650.00,EMA PLANNING LTD,A02429,6,2017
Allerdale Borough Council,15501,Supplies & Services,Building Control Pay Group,Consultants Fees,20/09/2017,211414,2640.00,SOUTH MILFORD CONSULTING LTD,A02453,6,2017
Allerdale Borough Council,15501,Supplies & Services,Building Control Pay Group,Consultants Fees,20/09/2017,211415,1850.00,BRG INTERIM SOLUTIONS LTD,A02458,6,2017
Allerdale Borough Council,15501,Supplies & Services,Building Control Pay Group,Consultants Fees,27/09/2017,211416,2650.00,EMA PLANNING LTD,A02429,6,2017
Allerdale Borough Council,20305,Third Party Payments,Maryport Wave,Contract Services-Leisure Centres,20/09/2017,211417,8661.92,GREENWICH LEISURE LTD (PREV CARLISLE LEISURE),A00136,6,2017
Allerdale Borough Council,20306,Third Party Payments,Maryport Wave,Contract Services-The Wave,20/09/2017,211418,10833.33,GREENWICH LEISURE LTD (PREV CARLISLE LEISURE),A00136,6,2017
Allerdale Borough Council,15506,Supplies & Services,Disposal of Allerdale Sites,Professional Services,20/09/2017,211419,725.00,CARTMELL SHEPHERD SOLICITORS,M00008,6,2017
Allerdale Borough Council,15502,Supplies & Services,Housing & Health Pay Group,Land Registry Fees,12/09/2017,211430,42.00,HM LAND REGISTRY ,A00505,6,2017
Allerdale Borough Council,15502,Supplies & Services,Legal Services,Land Registry Fees,19/09/2017,211431,12.00,HM LAND REGISTRY,A00505,6,2017
Allerdale Borough Council,16150,Supplies & Services,Town Centre Management,General Promotions,20/09/2017,211432,170.00,MOSS BAY ARTS,A01149,6,2017
Allerdale Borough Council,15501,Supplies & Services,Revenue,Consultants Fees,04/10/2017,211433,125.00,ARVATO LIMITED,A02195,6,2017
Allerdale Borough Council,15811,Supplies & Services,Shared ICT Costs,Software Maintenance,,211434,1109.78,NETCENTRIX LIMITED,A00106,6,2017
Allerdale Borough Council,16101,Supplies & Services,Planning and Development,Statutory Notices,20/09/2017,211435,467.46,CUMBRIAN NEWSPAPERS LIMITED,A00869,6,2017
Allerdale Borough Council,21150,Transfer Payments,Museums,General Grants,20/09/2017,211436,875.00,WORKINGTON HERITAGE GROUP LTD,A00339,6,2017
Allerdale Borough Council,16150,Supplies & Services,Coastal Community Teams,General Promotions,20/09/2017,211437,2500.00,CUMBRIAN NEWSPAPERS LIMITED,A00869,6,2017
Allerdale Borough Council,16101,Supplies & Services,Planning and Development,Statutory Notices,20/09/2017,211438,697.07,CUMBRIAN NEWSPAPERS LIMITED,A00869,6,2017
Allerdale Borough Council,15501,Supplies & Services,Planning and Development,Consultants Fees,27/09/2017,211439,675.00,KINGS CHAMBERS,A00348,6,2017
Allerdale Borough Council,15501,Supplies & Services,Building Control Pay Group,Consultants Fees,20/09/2017,211440,2243.00,SOUTH MILFORD CONSULTING LTD,A02453,6,2017
Allerdale Borough Council,15501,Supplies & Services,Planning Policy,Consultants Fees,20/09/2017,211441,1541.25,G2 RECRUITMENT SOLUTIONS LTD,C00198,6,2017
Allerdale Borough Council,15811,Supplies & Services,IT Services,Software Maintenance,18/09/2017,211442,264.99,SAGE (UK) LTD,A01911,6,2017
Allerdale Borough Council,12101,Premises,Corporate Property Maintenance,External Maintenance & Decoration,20/09/2017,211443,425.00,Redacted information - included personal information ,C00008,6,2017
Allerdale Borough Council,12201,Premises,Public Convenience Cleaning,Internal Maintenance,20/09/2017,211444,818.00,Redacted information - included personal information ,C00008,6,2017
Allerdale Borough Council,16100,Supplies & Services,Communications and Marketing,Budget-Advertising and Promotions,20/09/2017,211445,370.00,CONNECTED SHOPPING LTD,A02479,6,2017
Allerdale Borough Council,15506,Supplies & Services,Building Control Service Improvement,Professional Services,27/09/2017,211446,6871.00,STOR-A-FILE LTD,A02480,6,2017
Allerdale Borough Council,15501,Supplies & Services,Estates,Consultants Fees,20/09/2017,211447,1470.00,STEVEN SLOCOMBE LTD,A02433,6,2017
Allerdale Borough Council,15101,Supplies & Services,Public Convenience Cleaning,Equipment Costs,20/09/2017,211448,1.58,INSTOCK (CHANDLERS),A00050,6,2017
Allerdale Borough Council,14101,Transport,Workington Nature Partnership,Vehicle Leasing,20/09/2017,211449,500.00,DOBIES VAUXHALL,A00254,6,2017
Allerdale Borough Council,14101,Transport,Workington Nature Partnership,Vehicle Leasing,20/09/2017,211450,250.00,DOBIES VAUXHALL,A00254,6,2017
Allerdale Borough Council,15401,Supplies & Services,Corporate Recruitment,General Stationery,20/09/2017,211451,95.00,ROYAL MAIL LETTERS,X00021,6,2017
Allerdale Borough Council,12408,Premises,Corporate Property Maintenance,Water & Sewage,20/09/2017,211452,195.23,UNITED UTILITIES,X00011,6,2017
Allerdale Borough Council,12408,Premises,Corporate Property Maintenance,Water & Sewage,20/09/2017,211453,233.25,UNITED UTILITIES ,X00011,6,2017
Allerdale Borough Council,12408,Premises,Public Convenience Cleaning,Water & Sewage,20/09/2017,211454,38.74,UNITED UTILITIES ,X00011,6,2017
Allerdale Borough Council,15804,Supplies & Services,IT Services,Computer Data Lines B.T.,27/09/2017,211455,1642.21,VODAFONE (PREV CABLE & WIRELESS),A00934,6,2017
Allerdale Borough Council,15601,Supplies & Services,Electoral Registration,Postage,20/09/2017,211456,2950.71,ROYAL MAIL LETTERS,X00021,6,2017
Allerdale Borough Council,15601,Supplies & Services,Corporate Postage and Stationary,Postage,20/09/2017,211457,1205.90,ROYAL MAIL LETTERS,X00021,6,2017
Allerdale Borough Council,12402,Premises,Car Parks Inspection & Maintenance,Electricity,20/09/2017,211458,90.79,N POWER ,X00015,6,2017
Allerdale Borough Council,20150,Third Party Payments,Managed Car Parks,General Partnership Service Fees,20/09/2017,211459,2561.40,KESWICK CONVENTION TRUST,A02390,6,2017
Allerdale Borough Council,20150,Third Party Payments,Managed Car Parks,General Partnership Service Fees,20/09/2017,211460,3723.06,KESWICK CONVENTION TRUST,A02390,6,2017
Allerdale Borough Council,20150,Third Party Payments,Managed Car Parks,General Partnership Service Fees,20/09/2017,211461,2703.85,KESWICK CONVENTION TRUST,A02390,6,2017
Allerdale Borough Council,20150,Third Party Payments,Managed Car Parks,General Partnership Service Fees,20/09/2017,211462,1046.00,KESWICK CONVENTION TRUST,A02390,6,2017
Allerdale Borough Council,15501,Supplies & Services,Revenue,Consultants Fees,04/10/2017,211463,12807.55,CAPACITYGRID T/A LIBERATA UK LTD,C00122,6,2017
Allerdale Borough Council,54105,Capital Expenditure,Discretionary Grants,Grants  Private Individuals (Capital),20/09/2017,211464,1564.00,DOLPHIN STAIRLIFTS CUMBRIA,X00107,6,2017
Allerdale Borough Council,54105,Capital Expenditure,Disabled Facilities Grants,Grants  Private Individuals (Capital),20/09/2017,211465,3250.58,LONSDALE BUILDING & JOINERY LIMITED,C00133,6,2017
Allerdale Borough Council,54105,Capital Expenditure,Disabled Facilities Grants,Grants  Private Individuals (Capital),20/09/2017,211466,1311.97,LONSDALE BUILDING & JOINERY LIMITED,C00133,6,2017
Allerdale Borough Council,15502,Supplies & Services,Legal Services,Land Registry Fees,15/09/2017,211467,63.00,HM LAND REGISTRY ,A00505,6,2017
Allerdale Borough Council,12405,Premises,Homelessness,Rentals and Lease Charges,,211468,65.00,BARCLAYCARD COMMERCIAL,X00207,6,2017
Allerdale Borough Council,15850,Supplies & Services,Solway Wetlands Project,General Computer Costs,,211469,12.00,BARCLAYCARD COMMERCIAL ,X00207,6,2017
Allerdale Borough Council,12101,Premises,Corporate Property Maintenance,External Maintenance & Decoration,20/09/2017,211470,558.31,MOORCLOSE COMMUNITY CENTRE LTD,A00709,6,2017
Allerdale Borough Council,33118,Income,Off-street - Owned,Car Parks - Season Tickets Income,20/09/2017,211471,2.00,Redacted information - included personal information ,M01221,6,2017
Allerdale Borough Council,33118,Income,Off-street - Owned,Car Parks - Season Tickets Income,20/09/2017,211472,5.50,Redacted information - included personal information ,M01222,6,2017
Allerdale Borough Council,54105,Capital Expenditure,Disabled Facilities Grants,Grants  Private Individuals (Capital),20/09/2017,211473,3242.12,MAYSON BROS LTD,X00132,6,2017
Allerdale Borough Council,54105,Capital Expenditure,Disabled Facilities Grants,Grants  Private Individuals (Capital),20/09/2017,211474,1332.00,PARTNERSHIP IN PROPERTY MANAGEMENT LTD,X00120,6,2017
Allerdale Borough Council,54105,Capital Expenditure,Disabled Facilities Grants,Grants  Private Individuals (Capital),20/09/2017,211475,2235.00,PARTNERSHIP IN PROPERTY MANAGEMENT LTD,X00120,6,2017
Allerdale Borough Council,54105,Capital Expenditure,Disabled Facilities Grants,Grants  Private Individuals (Capital),20/09/2017,211476,3619.00,PARTNERSHIP IN PROPERTY MANAGEMENT LTD,X00120,6,2017
Allerdale Borough Council,12303,Premises,Multi Storey Car Park Utilities & Maint,Window Cleaning,20/09/2017,211477,106.00,NT CLEANERS LTD,A01350,6,2017
Allerdale Borough Council,20150,Third Party Payments,Footways,General Partnership Service Fees,20/09/2017,211478,7321.51,CUMBRIA CC,A00066,6,2017
Allerdale Borough Council,12201,Premises,Corporate Property Maintenance,Internal Maintenance,20/09/2017,211479,1880.00,Redacted information - included personal information ,A01607,6,2017
Allerdale Borough Council,10401,Employee Costs,Housing & Health Pay Group,Agency Staff Costs,04/10/2017,211480,314.60,HAYS SPECIALIST RECRUITMENT LTD,A00280,6,2017
Allerdale Borough Council,15501,Supplies & Services,Homelessness,Consultants Fees,20/09/2017,211481,40.00,OXFORD STREET SURGERY,A00418,6,2017
Allerdale Borough Council,12103,Premises,Corporate Property Maintenance,Grounds Maintenance,,211482,1654.50,ISS WATERERS LANDSCAPE,C00044,6,2017
Allerdale Borough Council,16102,Supplies & Services,Town Centre Management,Regeneration Initiatives,20/09/2017,211483,200.00,CUMBRIAN NEWSPAPERS LIMITED,A00869,6,2017
Allerdale Borough Council,12408,Premises,Public Convenience Cleaning,Water & Sewage,20/09/2017,211484,10.37,UNITED UTILITIES,X00011,6,2017
Allerdale Borough Council,12402,Premises,Homelessness,Electricity,20/09/2017,211485,67.16,N POWER,X00262,6,2017
Allerdale Borough Council,12402,Premises,Homelessness,Electricity,20/09/2017,211486,33.44,N POWER,X00262,6,2017
Allerdale Borough Council,10401,Employee Costs,Land Charges Service,Agency Staff Costs,20/09/2017,211487,510.60,ADECCO RECRUITMENT,A00188,6,2017
Allerdale Borough Council,20150,Third Party Payments,Managed Car Parks,General Partnership Service Fees,27/09/2017,211488,3010.00,KESWICK CONVENTION TRUST,A02390,6,2017
Allerdale Borough Council,81602,Balance Sheet,General Fund,Prov-Insurance Excess (Balance Sheet),27/09/2017,211489,235.00,ZURICH MUNICIPAL,A00429,6,2017
Allerdale Borough Council,16300,Supplies & Services,Multi-storey Car Park,Budget-Miscellaneous,,211490,505.42,BARCLAYCARD COMMERCIAL,X00207,6,2017
Allerdale Borough Council,10601,Employee Costs,Training,External Courses & Seminar Fees,,211491,100.00,BARCLAYCARD COMMERCIAL,X00207,6,2017
Allerdale Borough Council,15103,Supplies & Services,Workington Nature Partnership,Purchase of Materials,27/09/2017,211492,3284.89,ISS WATERERS LANDSCAPE,C00044,6,2017
Allerdale Borough Council,12202,Premises,Corporate Property Maintenance,Electrical Repairs and Service,27/09/2017,211493,51.12,EDMUNDSON ELECTRICAL LTD,A00304,6,2017
Allerdale Borough Council,12405,Premises,Homelessness,Rentals and Lease Charges,27/09/2017,211494,50.00,CUMBERLAND HOTEL,A02415,6,2017
Allerdale Borough Council,15101,Supplies & Services,New Ways of Working,Equipment Costs,27/09/2017,211495,600.00,APM DESIGN LIMITED,A02374,6,2017
Allerdale Borough Council,10601,Employee Costs,Training,External Courses & Seminar Fees,27/09/2017,211496,507.00,JULIE BELL CONSULTING LIMITED,A01282,6,2017
Allerdale Borough Council,16350,Supplies & Services,Chief Executive,Miscellaneous Expenses,27/09/2017,211497,135.00,SOLWAY PLAIN FUTURES LTD,A01194,6,2017
Allerdale Borough Council,15508,Supplies & Services,Members Services,Subscriptions,,211498,55.00,ASSOCIATION OF DEMOCRATIC SERVICES OFFICERS LIMITED,A01129,6,2017
Allerdale Borough Council,15301,Supplies & Services,Public Convenience Cleaning,Uniforms,,211499,58.71,ARCO LIMITED - HEAD OFFICE HULL,A00045,6,2017
Allerdale Borough Council,15501,Supplies & Services,Building Control Pay Group,Consultants Fees,04/10/2017,211500,2650.00,EMA PLANNING LTD,A02429,6,2017
Allerdale Borough Council,15501,Supplies & Services,Building Control Pay Group,Consultants Fees,27/09/2017,211501,2120.00,EMA PLANNING LTD,A02429,6,2017
Allerdale Borough Council,16150,Supplies & Services,Coastal Community Teams,General Promotions,,211502,2435.50,ISS WATERERS LANDSCAPE,C00044,6,2017
Allerdale Borough Council,15803,Supplies & Services,IT Costs (Allerdale Only),Hardware Purchase,,211503,496.32,MISCO,A00125,6,2017
Allerdale Borough Council,10202,Employee Costs,Housing & Health Pay Group,Medical Screening,27/09/2017,211504,340.00,SPECSAVERS,A00026,6,2017
Allerdale Borough Council,15102,Supplies & Services,Parking Services Pay Group,Equipment Repair & Maintenance,27/09/2017,211505,19.36,RELIANCE HIGH-TECH LTD,C00123,6,2017
Allerdale Borough Council,12101,Premises,Environmental Initiatives,External Maintenance & Decoration,,211506,330.66,ISS WATERERS LANDSCAPE,C00044,6,2017
Allerdale Borough Council,16302,Supplies & Services,Parliamentary Election 2017,Room Hire,27/09/2017,211507,36.00,GREENWICH LEISURE LTD (PREV CARLISLE LEISURE),A00136,6,2017
Allerdale Borough Council,15904,Supplies & Services,Members Services,Training,27/09/2017,211508,158.40,AL'S KITCHEN LTD,A00187,6,2017
Allerdale Borough Council,15501,Supplies & Services,Planning Policy,Consultants Fees,27/09/2017,211509,1575.00,G2 RECRUITMENT SOLUTIONS LTD,C00198,6,2017
Allerdale Borough Council,15500,Supplies & Services,Confidential Waste,Budget-Services,27/09/2017,211510,226.00,J DUFFY LTD T/A PW CONF BUS SERVICES,A01846,6,2017
Allerdale Borough Council,14201,Transport,Members Services,Public Transport,27/09/2017,211511,120.00,KEN ROUTLEDGE TRAVEL LTD,A00192,6,2017
Allerdale Borough Council,84505,,Mayoral Services,Mayoral Travel Costs,04/10/2017,211512,610.00,Redacted information - included personal information ,A02440,6,2017
Allerdale Borough Council,14101,Transport,Mayoral Services,Vehicle Leasing,04/10/2017,211513,145.00,Redacted information - included personal information ,A02440,6,2017
Allerdale Borough Council,15501,Supplies & Services,Building Control Pay Group,Consultants Fees,27/09/2017,211514,1866.05,SOUTH MILFORD CONSULTING LTD,A02453,6,2017
Allerdale Borough Council,10401,Employee Costs,Customer Services Pay Group,Agency Staff Costs,27/09/2017,211515,470.95,ADECCO RECRUITMENT,A00188,6,2017
Allerdale Borough Council,10401,Employee Costs,Customer Services Pay Group,Agency Staff Costs,27/09/2017,211516,452.97,ADECCO RECRUITMENT,A00188,6,2017
Allerdale Borough Council,10401,Employee Costs,Customer Services Pay Group,Agency Staff Costs,27/09/2017,211517,384.67,ADECCO RECRUITMENT,A00188,6,2017
Allerdale Borough Council,15800,Supplies & Services,Corporate Postage and Stationary,Budget-Computing Costs (Non Capital),04/10/2017,211518,250.00,ANTALIS LIMITED,A00122,6,2017
Allerdale Borough Council,15500,Supplies & Services,Revenue,Budget-Services,27/09/2017,211519,34.79,ENTERPRISE RENT A CAR,A01367,6,2017
Allerdale Borough Council,15401,Supplies & Services,Corporate Postage and Stationary,General Stationery,27/09/2017,211520,158.76,LYRECO,A00043,6,2017
Allerdale Borough Council,10401,Employee Costs,Customer Services Pay Group,Agency Staff Costs,27/09/2017,211521,988.57,ADECCO RECRUITMENT,A00188,6,2017
Allerdale Borough Council,15501,Supplies & Services,Planning and Development,Consultants Fees,27/09/2017,211522,2066.50,STEPHENSON HALLIDAY LTD,A02459,6,2017
Allerdale Borough Council,14202,Transport,Chief Executive,Hire Car and petrol,27/09/2017,211523,82.41,ENTERPRISE RENT A CAR,A01367,6,2017
Allerdale Borough Council,12402,Premises,Footways,Electricity,27/09/2017,211524,5343.47,N POWER ,X00015,6,2017
Allerdale Borough Council,12408,Premises,Corporate Property Maintenance,Water & Sewage,27/09/2017,211525,128.20,UNITED UTILITIES ,X00011,6,2017
Allerdale Borough Council,12408,Premises,Public Convenience Cleaning,Water & Sewage,27/09/2017,211526,355.27,UNITED UTILITIES ,X00011,6,2017
Allerdale Borough Council,12408,Premises,Public Convenience Cleaning,Water & Sewage,27/09/2017,211527,214.63,UNITED UTILITIES ,X00011,6,2017
Allerdale Borough Council,12403,Premises,Corporate Property Maintenance,Gas,27/09/2017,211528,73.28,CORONA ENERGY,X00003,6,2017
Allerdale Borough Council,12403,Premises,Corporate Property Maintenance,Gas,27/09/2017,211529,124.74,CORONA ENERGY,X00003,6,2017
Allerdale Borough Council,12403,Premises,Corporate Property Maintenance,Gas,27/09/2017,211530,89.78,CORONA ENERGY,X00003,6,2017
Allerdale Borough Council,12403,Premises,Corporate Property Maintenance,Gas,27/09/2017,211531,52.19,CORONA ENERGY,X00003,6,2017
Allerdale Borough Council,12403,Premises,Corporate Property Maintenance,Gas,27/09/2017,211532,22.42,CORONA ENERGY,X00003,6,2017
Allerdale Borough Council,12403,Premises,Corporate Property Maintenance,Gas,27/09/2017,211533,83.38,CORONA ENERGY,X00003,6,2017
Allerdale Borough Council,12403,Premises,Corporate Property Maintenance,Gas,27/09/2017,211534,213.08,CORONA ENERGY,X00003,6,2017
Allerdale Borough Council,15703,Supplies & Services,IT Services,Call Charges,27/09/2017,211535,1136.74,BRITISH TELECOMMUNICATIONS,X00004,6,2017
Allerdale Borough Council,12101,Premises,Corporate Property Maintenance,External Maintenance & Decoration,27/09/2017,211536,312.00,PATON BROS SCAFFOLDING LTD,C00009,6,2017
Allerdale Borough Council,12303,Premises,Corporate Property Maintenance,Window Cleaning,27/09/2017,211537,405.00,BORDERBRITE LTD,C00155,6,2017
Allerdale Borough Council,15101,Supplies & Services,Public Building Cleaning,Equipment Costs,27/09/2017,211538,178.08,WF HYGIENE & CLEANING SUPPLIES,A01794,6,2017
Allerdale Borough Council,12101,Premises,Corporate Property Maintenance,External Maintenance & Decoration,,211539,4433.75,CAPITA - PROPERTY & INFRASTRUCTURE,A00774,6,2017
Allerdale Borough Council,21303,Transfer Payments,Parish Councils,Parish Councils,27/09/2017,211540,12846.46,ABOVE DERWENT PC,X00042,6,2017
Allerdale Borough Council,21303,Transfer Payments,Parish Councils,Parish Councils,27/09/2017,211541,2300.01,AIKTON P.C.,X00043,6,2017
Allerdale Borough Council,21303,Transfer Payments,Parish Councils,Parish Councils,27/09/2017,211542,5218.01,OUGHTERSIDE & ALLERBY PC,X00044,6,2017
Allerdale Borough Council,21303,Transfer Payments,Parish Councils,Parish Councils,27/09/2017,211543,4600.00,ALLHALLOWS P.C.,X00045,6,2017
Allerdale Borough Council,21303,Transfer Payments,Parish Councils,Parish Councils,27/09/2017,211544,5111.88,ALLONBY P.C.,X00046,6,2017
Allerdale Borough Council,21303,Transfer Payments,Parish Councils,Parish Councils,27/09/2017,211545,31499.99,ASPATRIA T.C.,X00047,6,2017
Allerdale Borough Council,21303,Transfer Payments,Parish Councils,Parish Councils,27/09/2017,211546,3704.33,BASSENTHWAITE P.C.,X00048,6,2017
Allerdale Borough Council,21303,Transfer Payments,Parish Councils,Parish Councils,27/09/2017,211547,4749.99,BLENNERHASSETT P.C.,X00050,6,2017
Allerdale Borough Council,21303,Transfer Payments,Parish Councils,Parish Councils,27/09/2017,211548,1700.00,BLINDBOTHEL P.C.,X00051,6,2017
Allerdale Borough Council,21303,Transfer Payments,Parish Councils,Parish Councils,27/09/2017,211549,3149.99,BLINDCRAKE P.C.,X00052,6,2017
Allerdale Borough Council,21303,Transfer Payments,Parish Councils,Parish Councils,27/09/2017,211550,2499.99,BOLTONS P.C.,X00053,6,2017
Allerdale Borough Council,21303,Transfer Payments,Parish Councils,Parish Councils,27/09/2017,211551,3457.43,BORROWDALE P.C.,X00054,6,2017
Allerdale Borough Council,21303,Transfer Payments,Parish Councils,Parish Councils,27/09/2017,211552,2750.00,BOTHEL P.C.,X00055,6,2017
Allerdale Borough Council,21303,Transfer Payments,Parish Councils,Parish Councils,27/09/2017,211553,9514.45,BOWNESS P.C.,X00056,6,2017
Allerdale Borough Council,21303,Transfer Payments,Parish Councils,Parish Councils,27/09/2017,211554,3206.01,BRIDEKIRK P.C.,X00057,6,2017
Allerdale Borough Council,21303,Transfer Payments,Parish Councils,Parish Councils,27/09/2017,211555,4999.50,BRIGHAM P.C.,X00058,6,2017
Allerdale Borough Council,21303,Transfer Payments,Parish Councils,Parish Councils,27/09/2017,211556,3000.00,BROMFIELD P.C.,X00059,6,2017
Allerdale Borough Council,21303,Transfer Payments,Parish Councils,Parish Councils,27/09/2017,211557,7687.21,BROUGHTON P.C.,X00060,6,2017
Allerdale Borough Council,21303,Transfer Payments,Parish Councils,Parish Councils,27/09/2017,211558,8100.00,BROUGHTON MOOR P.C.,X00061,6,2017
Allerdale Borough Council,21303,Transfer Payments,Parish Councils,Parish Councils,27/09/2017,211559,700.00,BUTTERMERE P.C.,X00062,6,2017
Allerdale Borough Council,21303,Transfer Payments,Parish Councils,Parish Councils,27/09/2017,211560,5949.99,CALDBECK P.C.,X00063,6,2017
Allerdale Borough Council,21303,Transfer Payments,Parish Councils,Parish Councils,27/09/2017,211561,777.68,CAMERTON P.C.,X00064,6,2017
Allerdale Borough Council,21303,Transfer Payments,Parish Councils,Parish Councils,27/09/2017,211562,96581.82,COCKERMOUTH T.C.,X00065,6,2017
Allerdale Borough Council,21303,Transfer Payments,Parish Councils,Parish Councils,27/09/2017,211563,6262.50,CROSSCANONBY P.C.,X00066,6,2017
Allerdale Borough Council,21303,Transfer Payments,Parish Councils,Parish Councils,27/09/2017,211564,7149.99,DEAN P.C.,X00067,6,2017
Allerdale Borough Council,21303,Transfer Payments,Parish Councils,Parish Councils,27/09/2017,211565,14249.99,DEARHAM P.C.,X00068,6,2017
Allerdale Borough Council,21303,Transfer Payments,Parish Councils,Parish Councils,27/09/2017,211566,875.00,DUNDRAW P.C.,X00069,6,2017
Allerdale Borough Council,21303,Transfer Payments,Parish Councils,Parish Councils,27/09/2017,211567,2338.27,EMBLETON P.C.,X00070,6,2017
Allerdale Borough Council,21303,Transfer Payments,Parish Councils,Parish Councils,27/09/2017,211568,4299.99,GILCRUX P.C.,X00071,6,2017
Allerdale Borough Council,21303,Transfer Payments,Parish Councils,Parish Councils,27/09/2017,211569,5346.40,GREAT CLIFTON P.C.,X00072,6,2017
Allerdale Borough Council,21303,Transfer Payments,Parish Councils,Parish Councils,27/09/2017,211570,6000.00,GREYSOUTHEN P.C.,X00073,6,2017
Allerdale Borough Council,21303,Transfer Payments,Parish Councils,Parish Councils,27/09/2017,211571,2049.99,HAYTON & MEALO P.C.,X00074,6,2017
Allerdale Borough Council,21303,Transfer Payments,Parish Councils,Parish Councils,27/09/2017,211572,6285.12,HOLME ABBEY P.C.,X00075,6,2017
Allerdale Borough Council,21303,Transfer Payments,Parish Councils,Parish Councils,27/09/2017,211573,3266.61,HOLME EAST WEAVER P.C.,X00076,6,2017
Allerdale Borough Council,21303,Transfer Payments,Parish Councils,Parish Councils,27/09/2017,211574,1000.00,HOLME LOW P.C.,X00077,6,2017
Allerdale Borough Council,21303,Transfer Payments,Parish Councils,Parish Councils,27/09/2017,211575,2500.01,HOLME ST CUTHBERT P.C.,X00078,6,2017
Allerdale Borough Council,21302,Transfer Payments,Parish Councils,Police Authority - Precept,27/09/2017,211576,3219.99,IREBY & ULDALE P.C.,X00079,6,2017
Allerdale Borough Council,21303,Transfer Payments,Parish Councils,Parish Councils,27/09/2017,211577,110464.99,KESWICK T.C.,X00080,6,2017
Allerdale Borough Council,21303,Transfer Payments,Parish Councils,Parish Councils,27/09/2017,211578,3778.73,KIRKBAMPTON P.C.,X00081,6,2017
Allerdale Borough Council,21303,Transfer Payments,Parish Councils,Parish Councils,27/09/2017,211579,4929.57,KIRKBRIDE P.C.,X00082,6,2017
Allerdale Borough Council,21303,Transfer Payments,Parish Councils,Parish Councils,27/09/2017,211580,2750.00,LITTLE CLIFTON P.C.,X00083,6,2017
Allerdale Borough Council,21303,Transfer Payments,Parish Councils,Parish Councils,27/09/2017,211581,2749.99,LORTON P.C.,X00084,6,2017
Allerdale Borough Council,21303,Transfer Payments,Parish Councils,Parish Councils,27/09/2017,211582,1225.00,LOWESWATER P.C.,X00085,6,2017
Allerdale Borough Council,21303,Transfer Payments,Parish Councils,Parish Councils,27/09/2017,211583,99261.29,MARYPORT T.C.,X00086,6,2017
Allerdale Borough Council,21303,Transfer Payments,Parish Councils,Parish Councils,27/09/2017,211584,4660.00,PAPCASTLE P.C.,X00087,6,2017
Allerdale Borough Council,21303,Transfer Payments,Parish Councils,Parish Councils,27/09/2017,211585,2549.83,PLUMBLAND P.C.,X00088,6,2017
Allerdale Borough Council,21303,Transfer Payments,Parish Councils,Parish Councils,27/09/2017,211586,27250.67,SEATON P.C.,X00089,6,2017
Allerdale Borough Council,21303,Transfer Payments,Parish Councils,Parish Councils,27/09/2017,211587,2422.15,SEBERGHAM P.C.,X00090,6,2017
Allerdale Borough Council,21303,Transfer Payments,Parish Councils,Parish Councils,27/09/2017,211588,287.99,SETMURTHY P.C.,X00091,6,2017
Allerdale Borough Council,21303,Transfer Payments,Parish Councils,Parish Councils,27/09/2017,211589,86195.00,SILLOTH T.C.,X00092,6,2017
Allerdale Borough Council,21303,Transfer Payments,Parish Councils,Parish Councils,27/09/2017,211590,3715.44,ST JOHNS P.C.,X00093,6,2017
Allerdale Borough Council,21303,Transfer Payments,Parish Councils,Parish Councils,27/09/2017,211591,11034.71,THURSBY P.C.,X00094,6,2017
Allerdale Borough Council,21303,Transfer Payments,Parish Councils,Parish Councils,27/09/2017,211592,2797.50,UNDERSKIDDAW P.C.,X00095,6,2017
Allerdale Borough Council,21303,Transfer Payments,Parish Councils,Parish Councils,27/09/2017,211593,1796.50,WAVERTON P.C.,X00096,6,2017
Allerdale Borough Council,21303,Transfer Payments,Parish Councils,Parish Councils,27/09/2017,211594,2459.45,WESTNEWTON P.C.,X00097,6,2017
Allerdale Borough Council,21303,Transfer Payments,Parish Councils,Parish Councils,27/09/2017,211595,3250.01,WESTWARD P.C.,X00098,6,2017
Allerdale Borough Council,21303,Transfer Payments,Parish Councils,Parish Councils,27/09/2017,211596,96035.00,WIGTON TOWN COUNCIL,X00099,6,2017
Allerdale Borough Council,21303,Transfer Payments,Parish Councils,Parish Councils,27/09/2017,211597,1500.00,WINSCALES P.C.,X00100,6,2017
Allerdale Borough Council,21303,Transfer Payments,Parish Councils,Parish Councils,27/09/2017,211598,3653.01,WOODSIDE P.C.,X00101,6,2017
Allerdale Borough Council,21303,Transfer Payments,Parish Councils,Parish Councils,27/09/2017,211599,226975.28,WORKINGTON T.C.,X00102,6,2017
Allerdale Borough Council,21303,Transfer Payments,Parish Councils,Parish Councils,27/09/2017,211600,494.59,WYTHOP P.C.,X00103,6,2017
Allerdale Borough Council,52101,Capital Expenditure,Housing Improvement Projects,Architects Fees (Capital),27/09/2017,211601,5400.00,DAY CUMMINS LIMITED,A00131,6,2017
Allerdale Borough Council,10401,Employee Costs,Land Charges Service,Agency Staff Costs,27/09/2017,211602,510.60,ADECCO RECRUITMENT,A00188,6,2017
Allerdale Borough Council,15103,Supplies & Services,Homelessness,Purchase of Materials,27/09/2017,211603,500.00,AA CARPETS LTD,C00031,6,2017
Allerdale Borough Council,16350,Supplies & Services,Museums,Miscellaneous Expenses,27/09/2017,211604,1500.00,ARTLINK TRANSPORT & STORAGE LTD,A02362,6,2017
Allerdale Borough Council,20300,Third Party Payments,Parks and Grounds Maintenance,Budget-Contract Services,27/09/2017,211605,54689.04,ISS WATERERS LANDSCAPE,C00044,6,2017
Allerdale Borough Council,20304,Third Party Payments,Recycling,Contract Services-Recycling,27/09/2017,211606,370979.41,FCC ENVIRONMENT SERVICES (FOCSA),A00085,6,2017
Allerdale Borough Council,20305,Third Party Payments,Sports & Leisure Centres,Contract Services-Leisure Centres,27/09/2017,211607,50531.72,GREENWICH LEISURE LTD (PREV CARLISLE LEISURE),A00136,6,2017
Allerdale Borough Council,20101,Third Party Payments,Recycling,Cleansing Contract,27/09/2017,211608,1937.74,CUMBRIA WASTE MANAGEMENT LTD,A01304,6,2017
Allerdale Borough Council,20101,Third Party Payments,Recycling,Cleansing Contract,27/09/2017,211609,2188.90,CUMBRIA WASTE MANAGEMENT LTD,A01304,6,2017
Allerdale Borough Council,20101,Third Party Payments,Recycling,Cleansing Contract,27/09/2017,211610,2764.06,CUMBRIA WASTE MANAGEMENT LTD,A01304,6,2017
Allerdale Borough Council,20101,Third Party Payments,Recycling,Cleansing Contract,27/09/2017,211611,2884.11,CUMBRIA WASTE MANAGEMENT LTD,A01304,6,2017
Allerdale Borough Council,20101,Third Party Payments,Recycling,Cleansing Contract,27/09/2017,211612,2708.90,CUMBRIA WASTE MANAGEMENT LTD,A01304,6,2017
Allerdale Borough Council,20101,Third Party Payments,Recycling,Cleansing Contract,27/09/2017,211613,3080.09,CUMBRIA WASTE MANAGEMENT LTD,A01304,6,2017
Allerdale Borough Council,20101,Third Party Payments,Recycling,Cleansing Contract,27/09/2017,211614,2551.75,CUMBRIA WASTE MANAGEMENT LTD,A01304,6,2017
Allerdale Borough Council,20101,Third Party Payments,Recycling,Cleansing Contract,27/09/2017,211615,3243.85,CUMBRIA WASTE MANAGEMENT LTD,A01304,6,2017
Allerdale Borough Council,16003,Supplies & Services,Off-street - Owned,Security of Cash Movements,27/09/2017,211616,710.50,G4S CASH SOLUTIONS (UK) LTD,A02421,6,2017
Allerdale Borough Council,16302,Supplies & Services,Sports Development,Room Hire,27/09/2017,211617,128.00,SOLWAY COMMUNITY TECHNOLOGY COLLEGE (SPORTS HALL),M00118,6,2017
Allerdale Borough Council,15501,Supplies & Services,Street Cleansing,Consultants Fees,27/09/2017,211618,200.00,Redacted information - included personal information ,A00078,6,2017
Allerdale Borough Council,15101,Supplies & Services,Animal Welfare,Equipment Costs,,211619,2750.00,BROXAP LIMITED,C00048,6,2017
Allerdale Borough Council,15101,Supplies & Services,Parking Services Pay Group,Equipment Costs,27/09/2017,211620,875.00,METRIC GROUP LTD,A00568,6,2017
Allerdale Borough Council,15401,Supplies & Services,Corporate Postage and Stationary,General Stationery,27/09/2017,211621,166.61,LYRECO,A00043,6,2017
Allerdale Borough Council,10501,Employee Costs,Advertising Vacancies,Advertising Vacancies,27/09/2017,211622,450.00,SPACEHOUSE LTD,A02475,6,2017
Allerdale Borough Council,10601,Employee Costs,Internal Audit Pay Group,External Courses & Seminar Fees,27/09/2017,211623,140.00,CIPFA NORTH WEST (VARIOUS TREASURER'S),A01792,6,2017
Allerdale Borough Council,20300,Third Party Payments,Parks and Grounds Maintenance,Budget-Contract Services,,211624,54.98,ISS WATERERS LANDSCAPE,C00044,6,2017
Allerdale Borough Council,15203,Supplies & Services,Members Services,Catering Costs and Consumables,,211625,199.79,KENT AND SUSSEX VENDING,A02127,6,2017
Allerdale Borough Council,16100,Supplies & Services,Communications and Marketing,Budget-Advertising and Promotions,27/09/2017,211626,220.00,FIRPRESS PRINTERS,A00063,6,2017
Allerdale Borough Council,12103,Premises,Corporate Property Maintenance,Grounds Maintenance,,211627,267.00,ISS WATERERS LANDSCAPE,C00044,6,2017
Allerdale Borough Council,20300,Third Party Payments,Parks and Grounds Maintenance,Budget-Contract Services,,211628,96.27,ISS WATERERS LANDSCAPE,C00044,6,2017
Allerdale Borough Council,14200,Transport,Internal Audit Pay Group,Budget-Travel,27/09/2017,211629,83.57,ENTERPRISE RENT A CAR,A01367,6,2017
Allerdale Borough Council,20300,Third Party Payments,Parks and Grounds Maintenance,Budget-Contract Services,,211630,742.71,ISS WATERERS LANDSCAPE,C00044,6,2017
Allerdale Borough Council,15512,Supplies & Services,Animal Welfare,Kennelling,27/09/2017,211631,49.57,MILLCROFT VETERINARY GROUP,A00211,6,2017
Allerdale Borough Council,33117,Income,Multi-storey Car Park,Car Parks - Income from Machines,27/09/2017,211632,105.10,Redacted information - included personal information ,M01223,6,2017
Allerdale Borough Council,33118,Income,Off-street - Owned,Car Parks - Season Tickets Income,27/09/2017,211633,7.00,Redacted information - included personal information ,M01224,6,2017
Allerdale Borough Council,15812,Supplies & Services,Direct Debits & System Development,Software Development,27/09/2017,211634,2862.50,TOTALMOBILE LIMITED,A01712,6,2017
Allerdale Borough Council,15509,Supplies & Services,Elections,Election Costs,27/09/2017,211635,240.00,MOORCLOSE COMMUNITY CENTRE LTD,A00709,6,2017
Allerdale Borough Council,15509,Supplies & Services,Elections,Election Costs,27/09/2017,211636,150.00,THE CONFERENCE ROOM THE MINTO CENTRE,M00132,6,2017
Allerdale Borough Council,10604,Employee Costs,Solway Wetlands Project,Hire of Training Rooms/Venues,04/10/2017,211637,45.00,NORTH CUMBRIA METHODIST CIRCUIT,M00901,6,2017
Allerdale Borough Council,16150,Supplies & Services,Maryport Shop Front Improvements,General Promotions,27/09/2017,211638,600.00,Redacted information - included personal information ,M01225,6,2017
Allerdale Borough Council,12405,Premises,Homelessness,Rentals and Lease Charges,27/09/2017,211639,841.25,BARCLAYCARD COMMERCIAL ,X00207,6,2017
Allerdale Borough Council,15101,Supplies & Services,MSCP equipment,Equipment Costs,,211640,133.74,BARCLAYCARD COMMERCIAL ,X00207,6,2017
Allerdale Borough Council,10601,Employee Costs,Training,External Courses & Seminar Fees,,211641,366.10,BARCLAYCARD COMMERCIAL ,X00207,6,2017
Allerdale Borough Council,10601,Employee Costs,Solway Wetlands Project,External Courses & Seminar Fees,,211642,30.00,BARCLAYCARD COMMERCIAL ,X00207,6,2017
Allerdale Borough Council,54105,Capital Expenditure,Disabled Facilities Grants,Grants  Private Individuals (Capital),27/09/2017,211643,776.14,DISENO ASSOCIATES LTD,X00221,6,2017
Allerdale Borough Council,54105,Capital Expenditure,Disabled Facilities Grants,Grants  Private Individuals (Capital),27/09/2017,211644,3831.00,MAYSON BROS LTD,X00132,6,2017
Allerdale Borough Council,54105,Capital Expenditure,Disabled Facilities Grants,Grants  Private Individuals (Capital),27/09/2017,211645,2815.00,BLUE FLAME SERVICES LTD,X00213,6,2017
Allerdale Borough Council,54105,Capital Expenditure,Disabled Facilities Grants,Grants  Private Individuals (Capital),27/09/2017,211646,1710.00,MAYSON BROS LTD,X00132,6,2017
Allerdale Borough Council,15506,Supplies & Services,Legal Services,Professional Services,27/09/2017,211647,247.50,FREETH CARTWRIGHT LLP,A01821,6,2017
Allerdale Borough Council,15506,Supplies & Services,Legal Services,Professional Services,27/09/2017,211648,165.00,FREETH CARTWRIGHT LLP,A01821,6,2017
Allerdale Borough Council,20101,Third Party Payments,Recycling,Cleansing Contract,27/09/2017,211649,1270.53,CUMBRIA WASTE MANAGEMENT LTD,A01304,6,2017
Allerdale Borough Council,15506,Supplies & Services,Legal Services,Professional Services,,211650,1250.00,KINGS CHAMBERS,A00348,6,2017
Allerdale Borough Council,15506,Supplies & Services,Legal Services,Professional Services,27/09/2017,211651,445.50,FREETH CARTWRIGHT LLP,A01821,6,2017
Allerdale Borough Council,15514,Supplies & Services,Mayor's Fund,Public Entertainment,04/10/2017,211652,50.00,Redacted information - included personal information ,A00627,6,2017
Allerdale Borough Council,15506,Supplies & Services,Legal Services,Professional Services,27/09/2017,211653,320.00,BEVAN BRITTAN LLP,A02181,6,2017
Allerdale Borough Council,15103,Supplies & Services,Car Park Equipment,Purchase of Materials,27/09/2017,211654,5100.00,FIRPRESS PRINTERS,A00063,6,2017
Allerdale Borough Council,15505,Supplies & Services,Licensing Service,Licences,,211655,1323.40,NEWAUTO LTD T/A MOGO UK,A00303,6,2017
Allerdale Borough Council,15100,Supplies & Services,Communications and Marketing,"Budget-Equipment, Furniture & Materials",,211656,144.00,XTREME GRAPHICS LTD,A02267,6,2017
Allerdale Borough Council,12203,Premises,Corporate Property Maintenance,Plumbing and Heating Maintenance,04/10/2017,211657,536.00,Redacted information - included personal information ,C00008,6,2017
Allerdale Borough Council,12301,Premises,Corporate Property Maintenance,Security,04/10/2017,211658,50.20,PROTEC SYSTEMS,C00026,6,2017
Allerdale Borough Council,15801,Supplies & Services,MSCP equipment,Hardware Installation,04/10/2017,211659,570.00,COMPASS SERVICES GROUP,A00839,6,2017
Allerdale Borough Council,12101,Premises,Corporate Property Maintenance,External Maintenance & Decoration,04/10/2017,211660,675.00,Redacted information - included personal information ,C00008,6,2017
Allerdale Borough Council,12101,Premises,Corporate Property Maintenance,External Maintenance & Decoration,04/10/2017,211661,277.00,Redacted information - included personal information ,C00008,6,2017
Allerdale Borough Council,12101,Premises,Corporate Property Maintenance,External Maintenance & Decoration,04/10/2017,211662,360.00,PATON BROS SCAFFOLDING LTD,C00009,6,2017
Allerdale Borough Council,12309,Premises,Multi Storey Car Park Utilities & Maint,Fire and Safety,,211663,285.71,COOK FIRE & SECURITY LTD,A02485,6,2017
Allerdale Borough Council,15803,Supplies & Services,IT Costs (Allerdale Only),Hardware Purchase,,211664,62.04,MISCO,A00125,6,2017
Allerdale Borough Council,16302,Supplies & Services,GP Accommodation Scheme,Room Hire,04/10/2017,211665,60.00,SOLWAY PLAIN FUTURES LTD,A01194,6,2017
Allerdale Borough Council,12203,Premises,Corporate Property Maintenance,Plumbing and Heating Maintenance,04/10/2017,211666,100.00,O'CONNELL & BEAN (MECH&ELEC) LTD,C00078,6,2017
Allerdale Borough Council,16101,Supplies & Services,Planning and Development,Statutory Notices,04/10/2017,211667,350.60,CUMBRIAN NEWSPAPERS LIMITED,A00869,6,2017
Allerdale Borough Council,16101,Supplies & Services,Planning and Development,Statutory Notices,04/10/2017,211668,430.54,CUMBRIAN NEWSPAPERS LIMITED,A00869,6,2017
Allerdale Borough Council,15509,Supplies & Services,Elections,Election Costs,,211669,1400.00,ADARE SEC LIMITED,A02306,6,2017
Allerdale Borough Council,15601,Supplies & Services,Electoral Registration,Postage,,211670,126.35,ADARE SEC LIMITED,A02306,6,2017
Allerdale Borough Council,15601,Supplies & Services,Electoral Registration,Postage,,211671,4240.43,ADARE SEC LIMITED,A02306,6,2017
Allerdale Borough Council,15601,Supplies & Services,Electoral Registration,Postage,04/10/2017,211672,12269.59,ADARE SEC LIMITED,A02306,6,2017
Allerdale Borough Council,15405,Supplies & Services,Electoral Registration,Use of External Printers,,211673,223.60,ADARE SEC LIMITED,A02306,6,2017
Allerdale Borough Council,15405,Supplies & Services,Electoral Registration,Use of External Printers,,211674,1369.99,ADARE SEC LIMITED,A02306,6,2017
Allerdale Borough Council,15601,Supplies & Services,Corporate Postage and Stationary,Postage,04/10/2017,211675,754.10,UK MAIL GROUP PLC,A02371,6,2017
Allerdale Borough Council,15601,Supplies & Services,Corporate Postage and Stationary,Postage,04/10/2017,211676,758.38,UK MAIL GROUP PLC,A02371,6,2017
Allerdale Borough Council,15601,Supplies & Services,Corporate Postage and Stationary,Postage,04/10/2017,211677,712.79,UK MAIL GROUP PLC,A02371,6,2017
Allerdale Borough Council,15601,Supplies & Services,Corporate Postage and Stationary,Postage,04/10/2017,211678,877.06,UK MAIL GROUP PLC,A02371,6,2017
Allerdale Borough Council,20108,Third Party Payments,Corporate Management,Audit Fees,04/10/2017,211679,12032.00,GRANT THORNTON UK LLP,A01736,6,2017
Allerdale Borough Council,15601,Supplies & Services,Corporate Postage and Stationary,Postage,04/10/2017,211680,975.32,UK MAIL GROUP PLC,A02371,6,2017
Allerdale Borough Council,81602,Balance Sheet,General Fund,Prov-Insurance Excess (Balance Sheet),04/10/2017,211681,4511.60,ZURICH MUNICIPAL,A00429,6,2017
Allerdale Borough Council,10401,Employee Costs,Finance and Accounting Pay Group,Agency Staff Costs,,211682,39.70,HAYS SPECIALIST RECRUITMENT LTD,A00280,6,2017
Allerdale Borough Council,15508,Supplies & Services,Banking and Interest,Subscriptions,,211683,3334.50,CIPFA BUSINESS LIMITED,A01791,6,2017
Allerdale Borough Council,15506,Supplies & Services,Solway Wetlands Project,Professional Services,04/10/2017,211684,27200.00,OPENSPACE (CUMBRIA) LTD,C00178,6,2017
Allerdale Borough Council,15100,Supplies & Services,Electoral Registration,"Budget-Equipment, Furniture & Materials",,211685,190.00,TWOFOLD LTD ,A00317,6,2017
Allerdale Borough Council,15506,Supplies & Services,Environmental Protection,Professional Services,,211686,315.56,UNITED UTILITIES PLC,A01657,6,2017
Allerdale Borough Council,12301,Premises,Corporate Property Maintenance,Security,04/10/2017,211687,60.00,PROTEC SYSTEMS,C00026,6,2017
Allerdale Borough Council,15501,Supplies & Services,Planning and Development,Consultants Fees,,211688,1175.00,RSK ADAS LTD,A02462,6,2017
Allerdale Borough Council,75103,Holding and Control Accounts,Payroll Suspense Account,PAYROLL September 17 Travel & Subsistence  ,,,"9,445.98",INLAND REVENUE,X00038,6,2017
